[Event "Snabb-SM för veteraner, 50+ 2019"]
[Site "Schackcentrum, Vegagatan 20, Gothenburg, Sweden"]
[Date "2019.10.06"]
[Round "8.8"]
[White "Andersson, Christer"]
[Black "Hautajarvi, Jukka"]
[Result "0-1"]
[TimeControl "15 minutes + 10 seconds per move from move one"]
[WhiteFideId "1734857"]
[BlackFideId "1716190"]
[WhiteElo "1678"]
[BlackElo "2145"]

1. Nf3 {[%clk 00:15:18]} {[%emt 00:00:01]} Nf6 {[%clk 00:15:19]} 2. d4 {[%clk
00:15:27]} {[%emt 00:00:01]} d5 {[%clk 00:15:28]} 3. Bf4 {[%clk 00:15:36]}
{[%emt 00:00:03]} c5 {[%clk 00:15:30]} {[%emt 00:00:08]} 4. e3 {[%clk
00:15:44]} {[%emt 00:00:01]} Nc6 {[%clk 00:15:39]} {[%emt 00:00:01]} 5. c3
{[%clk 00:15:48]} {[%emt 00:00:06]} Qb6 {[%clk 00:15:08]} {[%emt 00:00:40]} 6.
Qc1 {[%clk 00:15:43]} {[%emt 00:00:16]} Bf5 {[%clk 00:15:10]} {[%emt 00:00:08]}
7. dxc5 {[%clk 00:15:24]} {[%emt 00:00:28]} Qxc5 {[%clk 00:15:16]} {[%emt
00:00:04]} 8. Nbd2 {[%clk 00:14:38]} {[%emt 00:00:57]} e6 {[%clk 00:15:17]}
{[%emt 00:00:09]} 9. Nb3 {[%clk 00:14:30]} {[%emt 00:00:17]} Qb6 {[%clk
00:15:25]} {[%emt 00:00:02]} 10. Be2 {[%clk 00:14:31]} {[%emt 00:00:09]} Be7
{[%clk 00:15:32]} {[%emt 00:00:04]} 11. O-O {[%clk 00:14:38]} {[%emt 00:00:02]}
O-O {[%clk 00:15:41]} {[%emt 00:00:02]} 12. Nh4 {[%clk 00:14:39]} {[%emt
00:00:09]} Be4 {[%clk 00:15:39]} {[%emt 00:00:11]} 13. f3 {[%clk 00:14:21]}
{[%emt 00:00:29]} Bg6 {[%clk 00:15:44]} {[%emt 00:00:04]} 14. Nxg6 {[%clk
00:14:28]} {[%emt 00:00:03]} hxg6 {[%clk 00:15:52]} {[%emt 00:00:02]} 15. Kh1
{[%clk 00:14:11]} {[%emt 00:00:27]} e5 {[%clk 00:15:55]} {[%emt 00:00:07]} 16.
Bg3 {[%clk 00:13:53]} {[%emt 00:00:28]} a5 {[%clk 00:16:00]} {[%emt 00:00:05]}
17. Bf2 {[%clk 00:13:58]} {[%emt 00:00:04]} Qc7 {[%clk 00:15:46]} {[%emt
00:00:24]} 18. Nd2 {[%clk 00:13:31]} {[%emt 00:00:38]} Bc5 {[%clk 00:14:39]}
{[%emt 00:01:16]} 19. f4 {[%clk 00:12:50]} {[%emt 00:00:51]} Qb6 {[%clk
00:14:16]} {[%emt 00:00:33]} 20. Nb3 {[%clk 00:11:46]} {[%emt 00:01:14]} e4
{[%clk 00:12:55]} {[%emt 00:01:31]} 21. Nd4 {[%clk 00:11:15]} {[%emt 00:00:42]}
Nxd4 {[%clk 00:12:48]} {[%emt 00:00:16]} 22. exd4 {[%clk 00:11:10]} {[%emt
00:00:15]} Bd6 {[%clk 00:12:56]} {[%emt 00:00:02]} 23. Bh4 {[%clk 00:11:04]}
{[%emt 00:00:17]} Nh7 {[%clk 00:12:40]} {[%emt 00:00:26]} 24. f5 {[%clk
00:10:42]} {[%emt 00:00:32]} Qc7 {[%clk 00:12:43]} {[%emt 00:00:07]} 25. Qe3
{[%clk 00:07:21]} {[%emt 00:03:31]} Qd7 {[%clk 00:11:13]} {[%emt 00:01:40]} 26.
f6 {[%clk 00:05:24]} {[%emt 00:02:07]} b5 {[%clk 00:09:25]} {[%emt 00:01:57]}
27. Rf2 {[%clk 00:03:46]} {[%emt 00:01:48]} Nxf6 {[%clk 00:08:54]} {[%emt
00:00:41]} 28. Rxf6 {[%clk 00:01:55]} {[%emt 00:02:01]} gxf6 {[%clk 00:08:14]}
{[%emt 00:00:50]} 29. Qh6 {[%clk 00:02:04]} {[%emt 00:00:02]} Be7 {[%clk
00:08:08]} {[%emt 00:00:15]} 30. Rf1 {[%clk 00:00:53]} {[%emt 00:01:21]} f5
{[%clk 00:08:15]} {[%emt 00:00:03]} 31. Bg3 {[%clk 00:00:38]} {[%emt 00:00:24]}
Bf6 {[%clk 00:08:18]} {[%emt 00:00:07]} 32. Bg4 {[%clk 00:00:22]} {[%emt
00:00:26]} Bg7 {[%clk 00:08:22]} {[%emt 00:00:06]} 33. Qh4 {[%clk 00:00:18]}
{[%emt 00:00:12]} fxg4 {[%clk 00:08:28]} {[%emt 00:00:05]} 34. Rf4 {[%clk
00:00:24]} {[%emt 00:00:05]} f5 {[%clk 00:08:36]} {[%emt 00:00:02]} 35. Qg5
{[%clk 00:00:31]} {[%emt 00:00:03]} Ra6 {[%clk 00:08:44]} {[%emt 00:00:03]} 0-1

[Event "Snabb-SM för veteraner, 50+ 2019"]
[Site "Schackcentrum, Vegagatan 20, Gothenburg, Sweden"]
[Date "2019.10.06"]
[Round "8.9"]
[White "Bergre, Joachim"]
[Black "Andersson, Kjell-Ake"]
[Result "1-0"]
[TimeControl "15 minutes + 10 seconds per move from move one"]
[WhiteFideId "1704893"]
[BlackFideId "1713825"]
[WhiteElo "2035"]
[BlackElo "1854"]

1. Nf3 {[%clk 00:15:17]} {[%emt 00:00:03]} Nf6 {[%clk 00:15:17]} {[%emt
00:00:04]} 2. c4 {[%clk 00:15:24]} {[%emt 00:00:03]} g6 {[%clk 00:15:22]}
{[%emt 00:00:05]} 3. b3 {[%clk 00:15:19]} {[%emt 00:00:15]} Bg7 {[%clk
00:15:29]} {[%emt 00:00:03]} 4. Bb2 {[%clk 00:15:27]} {[%emt 00:00:01]} O-O
{[%clk 00:15:33]} {[%emt 00:00:07]} 5. g3 {[%clk 00:15:35]} d6 {[%clk
00:15:37]} {[%emt 00:00:06]} 6. d4 {[%clk 00:15:09]} {[%emt 00:00:37]} c5
{[%clk 00:15:29]} {[%emt 00:00:18]} 7. Bg2 {[%clk 00:14:43]} {[%emt 00:00:36]}
Nc6 {[%clk 00:15:11]} {[%emt 00:00:28]} 8. O-O {[%clk 00:13:55]} {[%emt
00:00:58]} cxd4 {[%clk 00:14:41]} {[%emt 00:00:40]} 9. Nxd4 {[%clk 00:13:59]}
{[%emt 00:00:06]} Nxd4 {[%clk 00:14:39]} {[%emt 00:00:12]} 10. Qxd4 {[%clk
00:13:48]} {[%emt 00:00:21]} Nh5 {[%clk 00:13:14]} {[%emt 00:01:34]} 11. Qd2
{[%clk 00:13:55]} {[%emt 00:00:04]} Bxb2 {[%clk 00:13:20]} {[%emt 00:00:04]} 12.
Qxb2 {[%clk 00:14:03]} {[%emt 00:00:02]} Rb8 {[%clk 00:13:17]} {[%emt
00:00:12]} 13. Nc3 {[%clk 00:13:59]} {[%emt 00:00:15]} a6 {[%clk 00:13:15]}
{[%emt 00:00:12]} 14. Rad1 {[%clk 00:13:42]} {[%emt 00:00:27]} Qe8 {[%clk
00:10:03]} {[%emt 00:03:22]} 15. Nd5 {[%clk 00:12:43]} {[%emt 00:01:08]} b5
{[%clk 00:09:29]} {[%emt 00:00:44]} 16. cxb5 {[%clk 00:12:38]} {[%emt
00:00:16]} axb5 {[%clk 00:09:37]} {[%emt 00:00:02]} 17. Qd4 {[%clk 00:11:18]}
{[%emt 00:01:29]} Bb7 {[%clk 00:08:03]} {[%emt 00:01:45]} 18. e4 {[%clk
00:10:22]} {[%emt 00:01:06]} Ng7 {[%clk 00:06:53]} {[%emt 00:01:19]} 19. Rc1
{[%clk 00:06:34]} {[%emt 00:03:59]} Bxd5 {[%clk 00:06:35]} {[%emt 00:00:28]} 20.
Qxd5 {[%clk 00:06:36]} {[%emt 00:00:07]} Ra8 {[%clk 00:06:11]} {[%emt
00:00:34]} 21. Rc2 {[%clk 00:06:29]} {[%emt 00:00:17]} Ra7 {[%clk 00:05:54]}
{[%emt 00:00:27]} 22. e5 {[%clk 00:06:26]} {[%emt 00:00:14]} dxe5 {[%clk
00:05:35]} {[%emt 00:00:29]} 23. Qxe5 {[%clk 00:06:35]} {[%emt 00:00:01]} Nf5
{[%clk 00:05:04]} {[%emt 00:00:40]} 24. Rfc1 {[%clk 00:05:59]} {[%emt
00:00:46]} Nd6 {[%clk 00:04:34]} {[%emt 00:00:41]} 25. Qd4 {[%clk 00:05:17]}
{[%emt 00:00:52]} Qb8 {[%clk 00:04:18]} {[%emt 00:00:25]} 26. a4 {[%clk
00:04:55]} {[%emt 00:00:33]} Nf5 {[%clk 00:03:27]} {[%emt 00:01:01]} 27. Qe4
{[%clk 00:04:00]} {[%emt 00:01:05]} Rd8 {[%clk 00:03:05]} {[%emt 00:00:32]} 28.
axb5 {[%clk 00:03:08]} {[%emt 00:01:02]} Qxb5 {[%clk 00:02:55]} {[%emt
00:00:20]} 29. Qc4 {[%clk 00:02:50]} {[%emt 00:00:28]} Qb6 {[%clk 00:02:24]}
{[%emt 00:00:40]} 30. b4 {[%clk 00:02:40]} {[%emt 00:00:21]} Rd4 {[%clk
00:02:02]} {[%emt 00:00:32]} 31. Qc8+ {[%clk 00:02:46]} {[%emt 00:00:05]} Kg7
{[%clk 00:02:10]} {[%emt 00:00:01]} 32. Rb1 {[%clk 00:02:27]} {[%emt 00:00:29]}
Rxb4 {[%clk 00:01:49]} {[%emt 00:00:31]} 33. Qc3+ {[%clk 00:02:31]} {[%emt
00:00:06]} Nd4 {[%clk 00:01:22]} {[%emt 00:00:37]} 34. Rxb4 {[%clk 00:02:20]}
{[%emt 00:00:21]} Qxb4 {[%clk 00:00:51]} {[%emt 00:00:42]} 35. Qxb4 {[%clk
00:02:28]} {[%emt 00:00:01]} 1-0

[Event "Snabb-SM för veteraner, 50+ 2019"]
[Site "Schackcentrum, Vegagatan 20, Gothenburg, Sweden"]
[Date "2019.10.06"]
[Round "8.10"]
[White "Kirppo, Ronny"]
[Black "Skulason, Johann"]
[Result "0-1"]
[TimeControl "15 minutes + 10 seconds per move from move one"]
[WhiteFideId "1724681"]
[BlackFideId "1733915"]
[WhiteElo "1877"]
[BlackElo "1839"]

1. d4 {[%clk 00:15:18]} {[%emt 00:00:01]} f5 {[%clk 00:15:19]} {[%emt
00:00:02]} 2. c4 {[%clk 00:15:16]} {[%emt 00:00:11]} Nf6 {[%clk 00:15:28]}
{[%emt 00:00:02]} 3. Nc3 {[%clk 00:15:19]} {[%emt 00:00:06]} e6 {[%clk
00:15:37]} {[%emt 00:00:01]} 4. Nf3 {[%clk 00:15:11]} {[%emt 00:00:18]} Be7
{[%clk 00:15:46]} {[%emt 00:00:01]} 5. g3 {[%clk 00:15:19]} {[%emt 00:00:02]}
O-O {[%clk 00:15:55]} 6. Bg2 {[%clk 00:15:28]} {[%emt 00:00:01]} c6 {[%clk
00:16:02]} {[%emt 00:00:04]} 7. d5 {[%clk 00:14:14]} {[%emt 00:01:23]} d6
{[%clk 00:16:06]} {[%emt 00:00:06]} 8. dxe6 {[%clk 00:10:04]} {[%emt 00:04:20]}
Bxe6 {[%clk 00:16:14]} {[%emt 00:00:02]} 9. Qd3 {[%clk 00:10:02]} {[%emt
00:00:13]} Nbd7 {[%clk 00:16:04]} {[%emt 00:00:20]} 10. b3 {[%clk 00:07:38]}
{[%emt 00:02:34]} Nc5 {[%clk 00:13:02]} {[%emt 00:03:11]} 11. Qc2 {[%clk
00:07:47]} {[%emt 00:00:02]} Qc7 {[%clk 00:12:14]} {[%emt 00:00:58]} 12. O-O
{[%clk 00:07:53]} {[%emt 00:00:03]} Rad8 {[%clk 00:12:23]} {[%emt 00:00:02]} 13.
Nd4 {[%clk 00:07:47]} {[%emt 00:00:16]} Nfe4 {[%clk 00:11:50]} {[%emt
00:00:42]} 14. Nxe4 {[%clk 00:06:59]} {[%emt 00:00:57]} fxe4 {[%clk 00:11:41]}
{[%emt 00:00:19]} 15. Nxe6 {[%clk 00:07:04]} {[%emt 00:00:06]} Nxe6 {[%clk
00:11:49]} {[%emt 00:00:02]} 16. Qxe4 {[%clk 00:06:19]} {[%emt 00:00:56]} Nc5
{[%clk 00:11:33]} {[%emt 00:00:26]} 17. Qc2 {[%clk 00:06:17]} {[%emt 00:00:11]}
Bf6 {[%clk 00:11:41]} {[%emt 00:00:02]} 18. Bb2 {[%clk 00:06:22]} {[%emt
00:00:06]} Rde8 {[%clk 00:10:27]} {[%emt 00:01:24]} 19. Rad1 {[%clk 00:05:50]}
{[%emt 00:00:41]} Bxb2 {[%clk 00:09:32]} {[%emt 00:01:05]} 20. Qxb2 {[%clk
00:05:59]} {[%emt 00:00:01]} Rf6 {[%clk 00:09:41]} 21. Qc2 {[%clk 00:05:17]}
{[%emt 00:00:52]} Ref8 {[%clk 00:08:21]} {[%emt 00:01:31]} 22. e3 {[%clk
00:04:58]} {[%emt 00:00:29]} Ne6 {[%clk 00:08:12]} {[%emt 00:00:20]} 23. h4
{[%clk 00:04:27]} {[%emt 00:00:41]} g5 {[%clk 00:08:09]} {[%emt 00:00:13]} 24.
hxg5 {[%clk 00:04:02]} {[%emt 00:00:34]} Nxg5 {[%clk 00:08:17]} {[%emt
00:00:02]} 25. Rd4 {[%clk 00:03:56]} {[%emt 00:00:16]} Qf7 {[%clk 00:07:48]}
{[%emt 00:00:40]} 26. Qe2 {[%clk 00:03:22]} {[%emt 00:00:43]} Qg6 {[%clk
00:06:19]} {[%emt 00:01:40]} 27. Qd3 {[%clk 00:02:35]} {[%emt 00:00:57]} Qh6
{[%clk 00:05:48]} {[%emt 00:00:42]} 28. Rh4 {[%clk 00:02:32]} {[%emt 00:00:11]}
Qg7 {[%clk 00:05:30]} {[%emt 00:00:28]} 29. Be4 {[%clk 00:00:41]} {[%emt
00:02:01]} h6 {[%clk 00:04:42]} {[%emt 00:00:59]} 30. Bg2 {[%clk 00:00:45]}
{[%emt 00:00:05]} Nf3+ {[%clk 00:04:10]} {[%emt 00:00:42]} 31. Bxf3 {[%clk
00:00:52]} {[%emt 00:00:03]} Rxf3 {[%clk 00:04:18]} {[%emt 00:00:02]} 32. Qxd6
{[%clk 00:00:53]} {[%emt 00:00:09]} R8f6 {[%clk 00:04:18]} {[%emt 00:00:10]} 33.
Qe5 {[%clk 00:00:39]} {[%emt 00:00:25]} Rxg3+ {[%clk 00:03:32]} {[%emt
00:00:56]} 34. Qxg3 {[%clk 00:00:20]} {[%emt 00:00:29]} Rg6 {[%clk 00:03:41]}
35. Rh3 {[%clk 00:00:21]} {[%emt 00:00:09]} Kh7 {[%clk 00:03:44]} {[%emt
00:00:07]} 0-1

[Event "Snabb-SM för veteraner, 50+ 2019"]
[Site "Schackcentrum, Vegagatan 20, Gothenburg, Sweden"]
[Date "2019.10.06"]
[Round "8.11"]
[White "Karlsson, Ulf"]
[Black "Torell, Torsten"]
[Result "1-0"]
[TimeControl "15 minutes + 10 seconds per move from move one"]
[WhiteFideId "1721674"]
[BlackFideId "1723839"]
[WhiteElo "2035"]
[BlackElo "1708"]

1. e4 {[%clk 00:15:12]} {[%emt 00:00:08]} c5 {[%clk 00:15:15]} {[%emt
00:00:05]} 2. Nc3 {[%clk 00:15:19]} {[%emt 00:00:03]} Nc6 {[%clk 00:15:18]}
{[%emt 00:00:06]} 3. g3 {[%clk 00:15:24]} {[%emt 00:00:06]} g6 {[%clk
00:15:15]} {[%emt 00:00:13]} 4. Bg2 {[%clk 00:15:32]} {[%emt 00:00:02]} Bg7
{[%clk 00:15:18]} {[%emt 00:00:06]} 5. d3 {[%clk 00:15:41]} {[%emt 00:00:01]}
d6 {[%clk 00:14:52]} {[%emt 00:00:36]} 6. f4 {[%clk 00:15:49]} {[%emt
00:00:02]} e6 {[%clk 00:14:50]} {[%emt 00:00:12]} 7. Nf3 {[%clk 00:15:56]}
{[%emt 00:00:02]} Nge7 {[%clk 00:14:52]} {[%emt 00:00:08]} 8. O-O {[%clk
00:16:04]} {[%emt 00:00:03]} O-O {[%clk 00:14:54]} {[%emt 00:00:08]} 9. Be3
{[%clk 00:16:11]} {[%emt 00:00:02]} Nd4 {[%clk 00:14:16]} {[%emt 00:00:48]} 10.
e5 {[%clk 00:16:19]} {[%emt 00:00:03]} Nec6 {[%clk 00:11:47]} {[%emt 00:02:38]}
11. exd6 {[%clk 00:15:39]} {[%emt 00:00:50]} Qxd6 {[%clk 00:11:51]} {[%emt
00:00:07]} 12. Ne4 {[%clk 00:15:46]} {[%emt 00:00:04]} Qe7 {[%clk 00:11:49]}
{[%emt 00:00:11]} 13. c3 {[%clk 00:15:24]} {[%emt 00:00:32]} Nxf3+ {[%clk
00:10:18]} {[%emt 00:01:41]} 14. Qxf3 {[%clk 00:15:30]} {[%emt 00:00:04]} f5
{[%clk 00:08:00]} {[%emt 00:02:28]} 15. Nxc5 {[%clk 00:14:17]} {[%emt
00:01:24]} Qd6 {[%clk 00:07:25]} {[%emt 00:00:45]} 16. Rad1 {[%clk 00:13:23]}
{[%emt 00:01:03]} Rb8 {[%clk 00:07:14]} {[%emt 00:00:21]} 17. Nb3 {[%clk
00:13:30]} {[%emt 00:00:03]} Qc7 {[%clk 00:06:28]} {[%emt 00:00:56]} 18. Rfe1
{[%clk 00:13:10]} {[%emt 00:00:30]} Bd7 {[%clk 00:06:14]} {[%emt 00:00:24]} 19.
Qf2 {[%clk 00:13:18]} {[%emt 00:00:02]} b6 {[%clk 00:06:00]} {[%emt 00:00:24]}
20. Nd4 {[%clk 00:12:04]} {[%emt 00:01:24]} e5 {[%clk 00:04:11]} {[%emt
00:02:00]} 21. Nxc6 {[%clk 00:09:09]} {[%emt 00:03:04]} Bxc6 {[%clk 00:04:18]}
{[%emt 00:00:03]} 22. fxe5 {[%clk 00:09:09]} {[%emt 00:00:11]} Bxg2 {[%clk
00:04:01]} {[%emt 00:00:26]} 23. Qxg2 {[%clk 00:09:16]} {[%emt 00:00:03]} Bxe5
{[%clk 00:03:50]} {[%emt 00:00:21]} 24. Qd5+ {[%clk 00:08:31]} {[%emt
00:00:55]} Kh8 {[%clk 00:03:43]} {[%emt 00:00:17]} 25. Bh6 {[%clk 00:07:38]}
{[%emt 00:01:03]} Rfe8 {[%clk 00:02:47]} {[%emt 00:01:06]} 26. d4 {[%clk
00:04:40]} {[%emt 00:03:07]} Bxg3 {[%clk 00:00:15]} {[%emt 00:02:43]} 27. Rxe8+
{[%clk 00:04:49]} {[%emt 00:00:02]} Rxe8 {[%clk 00:00:23]} 28. Rd2 {[%clk
00:01:24]} 1-0

[Event "Snabb-SM för veteraner, 50+ 2019"]
[Site "Schackcentrum, Vegagatan 20, Gothenburg, Sweden"]
[Date "2019.10.06"]
[Round "9.1"]
[White "Angskog, Kent"]
[Black "Svenn, Gosta"]
[Result "1/2-1/2"]
[TimeControl "15 minutes + 10 seconds per move from move one"]
[BlackTitle "FM"]
[WhiteFideId "1703668"]
[BlackFideId "1700553"]
[WhiteElo "2136"]
[BlackElo "2272"]

1. c4 {[%clk 00:15:17]} {[%emt 00:00:02]} e5 {[%clk 00:15:12]} {[%emt
00:00:08]} 2. e3 {[%clk 00:15:25]} {[%emt 00:00:02]} d6 {[%clk 00:15:09]}
{[%emt 00:00:14]} 3. d4 {[%clk 00:15:24]} {[%emt 00:00:11]} Be7 {[%clk
00:14:18]} {[%emt 00:01:00]} 4. Nc3 {[%clk 00:15:09]} {[%emt 00:00:24]} Nf6
{[%clk 00:13:50]} {[%emt 00:00:38]} 5. Nf3 {[%clk 00:14:54]} {[%emt 00:00:25]}
exd4 {[%clk 00:12:05]} {[%emt 00:01:56]} 6. exd4 {[%clk 00:14:35]} {[%emt
00:00:29]} d5 {[%clk 00:11:30]} {[%emt 00:00:46]} 7. cxd5 {[%clk 00:14:11]}
{[%emt 00:00:33]} O-O {[%clk 00:10:57]} {[%emt 00:00:42]} 8. Bc4 {[%clk
00:11:55]} {[%emt 00:02:26]} Nbd7 {[%clk 00:10:45]} {[%emt 00:00:23]} 9. O-O
{[%clk 00:11:46]} {[%emt 00:00:19]} Nb6 {[%clk 00:10:47]} {[%emt 00:00:08]} 10.
Qb3 {[%clk 00:11:01]} {[%emt 00:00:55]} Nxc4 {[%clk 00:07:53]} {[%emt
00:03:05]} 11. Qxc4 {[%clk 00:11:07]} {[%emt 00:00:03]} a6 {[%clk 00:08:01]}
{[%emt 00:00:03]} 12. Ne5 {[%clk 00:10:41]} {[%emt 00:00:35]} b5 {[%clk
00:05:04]} {[%emt 00:03:07]} 13. Qb3 {[%clk 00:10:49]} {[%emt 00:00:02]} Bb7
{[%clk 00:04:58]} {[%emt 00:00:17]} 14. Nc6 {[%clk 00:10:33]} {[%emt 00:00:25]}
Bxc6 {[%clk 00:05:03]} {[%emt 00:00:06]} 15. dxc6 {[%clk 00:10:41]} {[%emt
00:00:02]} Qxd4 {[%clk 00:05:06]} {[%emt 00:00:07]} 16. Be3 {[%clk 00:08:10]}
{[%emt 00:02:41]} Qd6 {[%clk 00:04:54]} {[%emt 00:00:22]} 17. Rac1 {[%clk
00:07:56]} {[%emt 00:00:24]} Qxc6 {[%clk 00:04:33]} {[%emt 00:00:31]} 18. a4
{[%clk 00:07:07]} {[%emt 00:00:59]} Rab8 {[%clk 00:04:09]} {[%emt 00:00:34]} 19.
axb5 {[%clk 00:06:39]} {[%emt 00:00:38]} axb5 {[%clk 00:04:16]} {[%emt
00:00:03]} 20. Rfd1 {[%clk 00:05:54]} {[%emt 00:00:55]} Qc4 {[%clk 00:03:07]}
{[%emt 00:01:20]} 21. Qxc4 {[%clk 00:04:18]} {[%emt 00:01:46]} bxc4 {[%clk
00:03:14]} {[%emt 00:00:03]} 22. Rc2 {[%clk 00:04:14]} {[%emt 00:00:13]} Rfd8
{[%clk 00:02:59]} {[%emt 00:00:26]} 23. Rxd8+ {[%clk 00:03:38]} {[%emt
00:00:47]} Bxd8 {[%clk 00:02:13]} {[%emt 00:00:56]} 24. h3 {[%clk 00:03:32]}
{[%emt 00:00:16]} h6 {[%clk 00:02:22]} {[%emt 00:00:02]} 25. Nd1 {[%clk
00:02:07]} {[%emt 00:01:34]} Nd5 {[%clk 00:01:54]} {[%emt 00:00:38]} 26. Rxc4
{[%clk 00:01:57]} {[%emt 00:00:20]} Nxe3 {[%clk 00:02:03]} {[%emt 00:00:02]} 27.
fxe3 {[%clk 00:01:57]} {[%emt 00:00:10]} Rb7 {[%clk 00:02:11]} {[%emt
00:00:02]} 28. Kf2 {[%clk 00:01:56]} {[%emt 00:00:11]} Bf6 {[%clk 00:02:20]}
{[%emt 00:00:02]} 29. Rc2 {[%clk 00:01:58]} {[%emt 00:00:07]} Kf8 {[%clk
00:01:59]} {[%emt 00:00:32]} 30. Ke2 {[%clk 00:02:07]} {[%emt 00:00:02]} Ke7
{[%clk 00:02:08]} {[%emt 00:00:01]} 31. Kd3 {[%clk 00:02:04]} {[%emt 00:00:12]}
Kd6 {[%clk 00:02:09]} {[%emt 00:00:08]} 32. Nc3 {[%clk 00:01:52]} {[%emt
00:00:23]} Bxc3 {[%clk 00:02:08]} {[%emt 00:00:12]} 33. Kxc3 {[%clk 00:01:19]}
{[%emt 00:00:43]} Ke5 {[%clk 00:02:16]} {[%emt 00:00:02]} 34. Kd3 {[%clk
00:00:44]} {[%emt 00:00:45]} Rb3+ {[%clk 00:02:23]} {[%emt 00:00:03]} 35. Ke2
{[%clk 00:00:53]} {[%emt 00:00:02]} Ke4 {[%clk 00:02:22]} {[%emt 00:00:11]} 36.
Rc4+ {[%clk 00:00:55]} {[%emt 00:00:08]} Ke5 {[%clk 00:02:07]} {[%emt
00:00:25]} 37. Rxc7 {[%clk 00:01:02]} {[%emt 00:00:04]} Rxb2+ {[%clk 00:02:15]}
{[%emt 00:00:02]} 38. Kf3 {[%clk 00:01:10]} {[%emt 00:00:01]} Ke6 {[%emt
00:00:05]} 1/2-1/2

[Event "Snabb-SM för veteraner, 50+ 2019"]
[Site "Schackcentrum, Vegagatan 20, Gothenburg, Sweden"]
[Date "2019.10.06"]
[Round "9.2"]
[White "Borvander, Tom"]
[Black "Holst, Conny"]
[Result "0-1"]
[TimeControl "15 minutes + 10 seconds per move from move one"]
[WhiteFideId "1707388"]
[BlackFideId "1701428"]
[WhiteElo "2066"]
[BlackElo "2166"]

1. d4 {[%clk 00:15:19]} Nf6 {[%clk 00:15:18]} {[%emt 00:00:02]} 2. c4 {[%clk
00:15:27]} {[%emt 00:00:02]} e6 {[%clk 00:15:26]} {[%emt 00:00:02]} 3. g3
{[%clk 00:15:35]} {[%emt 00:00:02]} Bb4+ {[%clk 00:15:34]} {[%emt 00:00:03]} 4.
Bd2 {[%clk 00:15:44]} a5 {[%clk 00:15:42]} {[%emt 00:00:01]} 5. Bg2 {[%clk
00:15:51]} {[%emt 00:00:03]} d6 {[%clk 00:15:45]} {[%emt 00:00:07]} 6. e4
{[%clk 00:15:36]} {[%emt 00:00:26]} e5 {[%clk 00:15:08]} {[%emt 00:00:48]} 7.
Ne2 {[%clk 00:15:09]} {[%emt 00:00:36]} O-O {[%clk 00:14:52]} {[%emt 00:00:26]}
8. O-O {[%clk 00:15:05]} {[%emt 00:00:14]} c6 {[%clk 00:12:27]} {[%emt
00:02:35]} 9. a3 {[%clk 00:14:08]} {[%emt 00:01:07]} Bxd2 {[%clk 00:12:34]}
{[%emt 00:00:03]} 10. Qxd2 {[%clk 00:14:11]} {[%emt 00:00:06]} Qe7 {[%clk
00:12:28]} {[%emt 00:00:16]} 11. Nbc3 {[%clk 00:14:16]} {[%emt 00:00:06]} Nbd7
{[%clk 00:12:09]} {[%emt 00:00:30]} 12. h3 {[%clk 00:09:46]} {[%emt 00:04:39]}
Re8 {[%clk 00:11:20]} {[%emt 00:00:59]} 13. Rad1 {[%clk 00:06:36]} {[%emt
00:03:20]} a4 {[%clk 00:10:14]} {[%emt 00:01:17]} 14. Qc2 {[%clk 00:06:13]}
{[%emt 00:00:32]} exd4 {[%clk 00:10:20]} {[%emt 00:00:04]} 15. Nxd4 {[%clk
00:06:17]} {[%emt 00:00:06]} Nc5 {[%clk 00:10:25]} {[%emt 00:00:05]} 16. Nf5
{[%clk 00:05:51]} {[%emt 00:00:37]} Bxf5 {[%clk 00:09:36]} {[%emt 00:00:59]} 17.
exf5 {[%clk 00:06:00]} h5 {[%clk 00:08:23]} {[%emt 00:01:23]} 18. Rd2 {[%clk
00:05:48]} {[%emt 00:00:21]} Nfd7 {[%clk 00:07:32]} {[%emt 00:01:01]} 19. Qd1
{[%clk 00:05:30]} {[%emt 00:00:28]} Ne5 {[%clk 00:07:13]} {[%emt 00:00:29]} 20.
Qxh5 {[%clk 00:05:17]} {[%emt 00:00:23]} Qf6 {[%clk 00:06:36]} {[%emt
00:00:48]} 21. Rfd1 {[%clk 00:03:49]} {[%emt 00:01:37]} Nxc4 {[%clk 00:06:01]}
{[%emt 00:00:45]} 22. Rd4 {[%clk 00:03:56]} {[%emt 00:00:02]} Re1+ {[%clk
00:06:03]} {[%emt 00:00:10]} 23. Rxe1 {[%clk 00:02:59]} {[%emt 00:01:07]} Qxd4
{[%clk 00:06:10]} {[%emt 00:00:03]} 24. Ne4 {[%clk 00:02:04]} {[%emt 00:01:04]}
Nd3 {[%clk 00:02:49]} {[%emt 00:03:31]} 25. Re2 {[%clk 00:01:58]} {[%emt
00:00:17]} f6 {[%clk 00:02:34]} {[%emt 00:00:24]} 26. g4 {[%clk 00:01:48]}
{[%emt 00:00:20]} Nf4 {[%clk 00:02:32]} {[%emt 00:00:12]} 27. Nxf6+ {[%clk
00:01:45]} {[%emt 00:00:13]} Qxf6 {[%clk 00:02:16]} {[%emt 00:00:26]} 28. Re8+
{[%clk 00:01:52]} {[%emt 00:00:03]} Rxe8 {[%clk 00:02:24]} {[%emt 00:00:03]} 29.
Qxe8+ {[%clk 00:02:00]} Kh7 {[%clk 00:02:33]} {[%emt 00:00:01]} 30. Qe4 {[%clk
00:02:05]} {[%emt 00:00:05]} Qd4 {[%clk 00:02:17]} {[%emt 00:00:27]} 31. Qe7
{[%clk 00:01:40]} {[%emt 00:00:34]} Nxg2 {[%clk 00:01:55]} {[%emt 00:00:32]} 32.
Kxg2 {[%clk 00:01:48]} {[%emt 00:00:02]} Qd5+ {[%clk 00:01:56]} {[%emt
00:00:09]} 33. Kg1 {[%clk 00:01:47]} {[%emt 00:00:09]} Qe5 {[%clk 00:01:41]}
{[%emt 00:00:28]} 34. Qh4+ {[%clk 00:00:32]} {[%emt 00:01:25]} Kg8 {[%clk
00:01:49]} {[%emt 00:00:02]} 35. Qd8+ {[%clk 00:00:38]} {[%emt 00:00:04]} Kf7
{[%clk 00:01:56]} {[%emt 00:00:02]} 36. Qg5 {[%clk 00:00:26]} {[%emt 00:00:22]}
d5 {[%clk 00:01:31]} {[%emt 00:00:36]} 37. Qg6+ {[%clk 00:00:27]} {[%emt
00:00:08]} Kf8 {[%clk 00:01:39]} {[%emt 00:00:03]} 38. g5 {[%clk 00:00:31]}
{[%emt 00:00:05]} Nd6 {[%clk 00:01:06]} {[%emt 00:00:44]} 39. f6 {[%clk
00:00:29]} {[%emt 00:00:11]} gxf6 {[%clk 00:01:05]} {[%emt 00:00:11]} 40. gxf6
{[%clk 00:00:38]} {[%emt 00:00:02]} Qe1+ {[%clk 00:01:12]} {[%emt 00:00:03]} 41.
Kh2 {[%clk 00:00:27]} {[%emt 00:00:20]} Qxf2+ {[%clk 00:01:20]} {[%emt
00:00:03]} 42. Kh1 {[%clk 00:00:36]} Qe1+ {[%clk 00:00:59]} {[%emt 00:00:31]}
43. Kh2 {[%clk 00:00:43]} {[%emt 00:00:02]} Qe2+ {[%clk 00:01:07]} {[%emt
00:00:03]} 44. Kg1 {[%clk 00:00:47]} {[%emt 00:00:05]} Qe6 {[%clk 00:01:01]}
{[%emt 00:00:17]} 45. Qg7+ {[%clk 00:00:47]} {[%emt 00:00:10]} Ke8 {[%clk
00:01:09]} {[%emt 00:00:02]} 0-1